lending/lending_fUSD_20250131
["ID","MTS","AMOUNT","RATE_DAILY","PERIOD"]
[351037735,1738305042808,-500.0,0.00019178,2]
[351037737,1738305042817,-500.0,0.00019178,2]
[351037739,1738305042827,-500.0,0.00019178,2]
[351037742,1738305042836,-505.69462426,0.00019178,2]
[351037744,1738305042845,-1440.62,0.00019178,2]
[351037746,1738305042855,-702.9,0.00019178,2]
[351037748,1738305042864,-500.0,0.00019178,2]
[351037750,1738305042874,-500.0,0.00019178,2]
[351037752,1738305042883,-526.05929475,0.00019178,2]
[351037754,1738305042892,-500.0,0.00019178,2]
[351037756,1738305042902,-1568.12,0.00019178,2]
[351037758,1738305042912,-629.08,0.00019178,2]
[351037760,1738305042921,-614.57,0.00019178,2]
[351037786,1738305043132,-660.86,0.00019178,2]
[351037788,1738305043141,-500.0,0.00019178,2]
[351037790,1738305043150,-814.9,0.00019178,2]
[351037792,1738305043159,-511.06832147,0.00019178,2]
[351037794,1738305043168,-500.0,0.00019178,2]
[351037796,1738305043177,-500.0,0.00019178,2]
[351037798,1738305043187,-512.74608422,0.00019178,2]
[351037800,1738305043196,-1203.73,0.00019178,2]
[351037802,1738305043206,-500.0,0.00019178,2]
[351037804,1738305043215,-1186.22,0.00019178,2]
[351037806,1738305043225,-1147.47,0.00019178,2]
[351037808,1738305043234,-500.0,0.00019178,2]
[351037810,1738305043244,-540.01,0.00019178,2]
[351037812,1738305043254,-500.0,0.00019178,2]
[351037814,1738305043263,-152.930379,0.00019178,2]
[351037816,1738305043272,-500.0,0.00019178,2]
[351037818,1738305043283,-524.52,0.00019178,2]
[351037820,1738305043293,-500.0,0.00019178,2]
[351037822,1738305043302,-500.0,0.00019178,2]
[351037824,1738305043312,-500.0,0.00019178,2]
[351037826,1738305043322,-881.63,0.00019178,2]
[351037828,1738305043332,-967.81,0.00019178,2]
[351037830,1738305043342,-534.57,0.00019178,2]
[351037832,1738305043351,-500.0,0.00019178,2]
[351037834,1738305043361,-500.0,0.00019178,2]
[351037836,1738305043370,-500.0,0.00019178,2]
[351037838,1738305043379,-500.0,0.00019178,2]
[351037840,1738305043389,-500.0,0.00019178,2]
[351037842,1738305043398,-1375.8,0.00019178,2]
[351037844,1738305043407,-2064.31,0.00019178,2]
[351037845,1738305043417,-693.79,0.00019178,2]
[351037848,1738305043427,-1371.89,0.00019178,2]
[351037850,1738305043437,-153.239463,0.00019178,2]
[351037852,1738305043447,-567.83,0.00019178,2]
[351037854,1738305043456,-500.0,0.00019178,2]
[351037856,1738305043466,-1170.58,0.00019178,2]
[351037858,1738305043475,-500.0,0.00019178,2]
[351037860,1738305043484,-500.0,0.00019178,2]
[351037862,1738305043494,-1657.08,0.00019178,2]
[351037864,1738305043503,-1028.74,0.00019178,2]
[351037865,1738305043512,-500.0,0.00019178,2]
[351037868,1738305043522,-997.27,0.00019178,2]
[351037869,1738305043531,-500.0,0.00019178,2]
[351037872,1738305043542,-263.32881346,0.00019178,2]
[351037873,1738305043552,-150.823465,0.00019178,2]
[351037876,1738305043562,-709.71,0.00019178,2]
[351037878,1738305043571,-500.0,0.00019178,2]
[351037880,1738305043581,-471.16377526,0.00019178,2]
[351037881,1738305043590,-622.48,0.00019178,2]
[351037884,1738305043600,-1222.79,0.00019178,2]
[351037885,1738305043612,-1025.99,0.00019178,2]
[351037888,1738305043622,-500.0,0.00019178,2]
[351037890,1738305043632,-500.0,0.00019178,2]
[351037892,1738305043641,-491.46727822,0.00019178,2]
[351037894,1738305043651,-579.62,0.00019178,2]
[351037896,1738305043662,-1306.27,0.00019178,2]
[351037898,1738305043671,-1132.77,0.00019178,2]
[351037900,1738305043681,-515.15,0.00019178,2]
[351037902,1738305043691,-733.92,0.00019178,2]
[351037904,1738305043703,-500.0,0.00019178,2]
[351037906,1738305043713,-500.0,0.00019178,2]
[351037908,1738305043723,-567.93,0.00019178,2]
[351037910,1738305043733,-1749.85,0.00019178,2]
[351037912,1738305043743,-500.0,0.00019178,2]
[351037914,1738305043752,-500.0,0.00019178,2]
[351037916,1738305043762,-1277.79,0.00019178,2]
[351037918,1738305043772,-1044.01,0.00019178,2]
[351037920,1738305043782,-500.0,0.00019178,2]
[351037922,1738305043793,-500.0,0.00019178,2]
[351037924,1738305043803,-2092.2,0.00019178,2]
[351037926,1738305043813,-6599.4,0.00019178,2]
[351037928,1738305043822,-500.0,0.00019178,2]
[351037930,1738305043831,-1349.63,0.00019178,2]
[351037932,1738305043841,-500.0,0.00019178,2]
[351037934,1738305043850,-623.6,0.00019178,2]
[351037936,1738305043860,-500.0,0.00019178,2]
[351037938,1738305043870,-1162.34,0.00019178,2]
[351037940,1738305043880,-500.0,0.00019178,2]
[351037942,1738305043889,-704.49,0.00019178,2]
[351037944,1738305043899,-2843.11,0.00019178,2]
[351037946,1738305043909,-500.0,0.00019178,2]
[351037948,1738305043918,-500.0,0.00019178,2]
[351037950,1738305043928,-1467.74,0.00019178,2]
[351037952,1738305043937,-500.0,0.00019178,2]
[351037954,1738305043947,-500.0,0.00019178,2]
[351037956,1738305043956,-2381.94,0.00019178,2]
[351037958,1738305043966,-500.0,0.00019178,2]
[351037960,1738305043975,-1324.74,0.00019178,2]
[351037962,1738305043985,-500.0,0.00019178,2]
[351037964,1738305043994,-1349.56,0.00019178,2]
[351037966,1738305044003,-500.0,0.00019178,2]
[351037968,1738305044013,-2091.67,0.00019178,2]
[351037970,1738305044022,-1017.43,0.00019178,2]
[351037972,1738305044032,-1259.58,0.00019178,2]
[351037975,1738305044042,-500.0,0.00019178,2]
[351037977,1738305044052,-3116.59,0.00019178,2]
[351037979,1738305044062,-1719.88,0.00019178,2]
[351037981,1738305044071,-2234.71,0.00019178,2]
[351037983,1738305044080,-740.76,0.00019178,2]
[351037985,1738305044090,-666.18,0.00019178,2]
[351037987,1738305044100,-906.12,0.00019178,2]
[351037989,1738305044110,-4876.27,0.00019178,2]
[351037991,1738305044119,-1298.89,0.00019178,2]
[351037993,1738305044129,-819.25,0.00019178,2]
[351037995,1738305044138,-500.0,0.00019178,2]
[351037997,1738305044148,-500.0,0.00019178,2]
[351037999,1738305044158,-695.87,0.00019178,2]
[351038001,1738305044167,-500.0,0.00019178,2]
[351038003,1738305044176,-500.0,0.00019178,2]
[351038005,1738305044186,-500.0,0.00019178,2]
[351038007,1738305044195,-500.0,0.00019178,2]
[351038009,1738305044206,-500.0,0.00019178,2]
[351038011,1738305044216,-500.0,0.00019178,2]
[351038013,1738305044226,-1699.86,0.00019178,2]
[351038015,1738305044235,-2758.75,0.00019178,2]
[351038017,1738305044244,-500.0,0.00019178,2]
[351038019,1738305044255,-3201.18,0.00019178,2]
[351038021,1738305044265,-500.0,0.00019178,2]
[351038023,1738305044275,-3315.06,0.00019178,2]
[351038025,1738305044284,-508.57230485,0.00019178,2]
[351038027,1738305044295,-738.95,0.00019178,2]
[351038029,1738305044305,-842.74,0.00019178,2]
[351038031,1738305044314,-500.0,0.00019178,2]
[351038033,1738305044323,-2477.82,0.00019178,2]
[351038035,1738305044333,-1149.21,0.00019178,2]
[351038037,1738305044342,-6509.57,0.00019178,2]
[351038039,1738305044352,-151.0,0.00019178,2]
[351038041,1738305044361,-771.98,0.00019178,2]
[351038043,1738305044370,-1331.02,0.00019178,2]
[351038045,1738305044379,-500.0,0.00019178,2]
[351038047,1738305044388,-1406.67,0.00019178,2]
[351038049,1738305044398,-16710.32,0.00019178,2]
[351038051,1738305044408,-1691.16,0.00019178,2]
[351038053,1738305044417,-500.0,0.00019178,2]
[351038055,1738305044426,-1770.42,0.00019178,2]
[351038057,1738305044436,-500.0,0.00019178,2]
[351038059,1738305044445,-500.0,0.00019178,2]
[351038061,1738305044454,-512.58731342,0.00019178,2]
[351038063,1738305044463,-1059.79,0.00019178,2]
[351038065,1738305044473,-1589.13,0.00019178,2]
[351038067,1738305044483,-684.17,0.00019178,2]
[351038069,1738305044492,-500.0,0.00019178,2]
[351038071,1738305044502,-500.0,0.00019178,2]
[351038073,1738305044511,-500.0,0.00019178,2]
[351038075,1738305044520,-1904.76,0.00019178,2]
[351038077,1738305044530,-500.0,0.00019178,2]
[351038079,1738305044540,-500.0,0.00019178,2]
[351038081,1738305044550,-2243.64,0.00019178,2]
[351038083,1738305044559,-500.0,0.00019178,2]
[351038085,1738305044569,-500.0,0.00019178,2]
[351038087,1738305044578,-1607.08,0.00019178,2]
[351038089,1738305044587,-151.0,0.00019178,2]
[351038091,1738305044597,-500.0,0.00019178,2]
[351038093,1738305044607,-500.0,0.00019178,2]
[351038095,1738305044620,-8728.29,0.00019178,2]
[351038097,1738305044630,-916.1,0.00019178,2]
[351038099,1738305044639,-220.984685,0.00019178,2]
[351038102,1738305044650,-2460.64,0.00019178,2]
[351038104,1738305044659,-500.0,0.00019178,2]
[351038106,1738305044668,-1056.49,0.00019178,2]
[351038108,1738305044678,-1532.03,0.00019178,2]
[351038110,1738305044688,-545.53439888,0.00019178,2]
[351038111,1738305044697,-9116.32,0.00019178,2]
[351038112,1738305044707,-4841.93,0.00019178,2]
[351038113,1738305044717,-500.0,0.00019178,2]
[351038114,1738305044727,-2051.41,0.00019178,2]
[351038115,1738305044737,-500.0,0.00019178,2]
[351038116,1738305044746,-3924.2,0.00019178,2]
[351038117,1738305044756,-5218.86,0.00019178,2]
[351038118,1738305044766,-1447.74,0.00019178,2]
[351038119,1738305044776,-1383.2,0.00019178,2]
[351038121,1738305044786,-591.16,0.00019178,2]
[351038123,1738305044796,-500.0,0.00019178,2]
[351038125,1738305044805,-625.0,0.00019178,2]
[351038127,1738305044814,-3735.73,0.00019178,2]
[351038129,1738305044823,-3114.11,0.00019178,2]
[351038131,1738305044833,-3624.11,0.00019178,2]
[351038133,1738305044842,-3114.11,0.00019178,2]
[351038135,1738305044851,-2417.21,0.00019178,2]
[351038137,1738305044861,-3114.11,0.00019178,2]
[351038139,1738305044870,-3114.11,0.00019178,2]
[351038141,1738305044879,-3114.11,0.00019178,2]
[351038143,1738305044889,-3114.11,0.00019178,2]
[351038145,1738305044898,-2287.83,0.00019178,2]
[351038147,1738305044907,-500.0,0.00019178,2]
[351038149,1738305044917,-1686.1,0.00019178,2]
[351038151,1738305044926,-762.72,0.00019178,2]
[351038153,1738305044936,-5194.55,0.00019178,2]
[351038155,1738305044946,-151.0,0.00019178,2]
[351038157,1738305044956,-502.65,0.00019178,2]
[351038159,1738305044966,-500.0,0.00019178,2]
[351038161,1738305044976,-500.0,0.00019178,2]
[351038163,1738305044985,-277.251744,0.00019178,2]
[351038165,1738305044995,-1053.48,0.00019178,2]
[351038167,1738305045004,-151.0,0.00019178,2]
[351038169,1738305045014,-1780.0,0.00019178,2]
[351038171,1738305045023,-500.0,0.00019178,2]
[351038173,1738305045034,-1463.48,0.00019178,2]
[351038175,1738305045043,-277.251744,0.00019178,2]
[351038177,1738305045053,-4635.87,0.00019178,2]
[351038179,1738305045063,-9953.84,0.00019178,2]
[351038181,1738305045072,-509.26,0.00019178,2]
[351038183,1738305045081,-500.0,0.00019178,2]
[351038185,1738305045091,-5346.59,0.00019178,2]
[351038186,1738305045100,-2428.73,0.00019178,2]
[351038189,1738305045109,-2702.64,0.00019178,2]
[351038191,1738305045119,-2686.86,0.00019178,2]
[351038192,1738305045129,-1018.98,0.00019178,2]
[351038194,1738305045138,-911.08,0.00019178,2]
[351038196,1738305045147,-841.09,0.00019178,2]
[351038198,1738305045156,-1934.18,0.00019178,2]
[351038200,1738305045166,-3270.62,0.00019178,2]
[351038202,1738305045175,-3812.71,0.00019178,2]
[351038204,1738305045184,-9393.9,0.00019178,2]
[351038206,1738305045194,-1562.13,0.00019178,2]
[351038208,1738305045204,-500.0,0.00019178,2]
[351038210,1738305045213,-898.06,0.00019178,2]
[351038212,1738305045223,-3520.86,0.00019178,2]
[351038214,1738305045232,-685.72,0.00019178,2]
[351038216,1738305045241,-3882.4,0.00019178,2]
[351038218,1738305045251,-500.0,0.00019178,2]
[351038220,1738305045260,-8126.78,0.00019178,2]
[351038222,1738305045269,-500.0,0.00019178,2]
[351038224,1738305045278,-1770.12,0.00019178,2]
[351038226,1738305045287,-2893.08,0.00019178,2]
[351038228,1738305045297,-1656.89,0.00019178,2]
[351038230,1738305045307,-6696.12,0.00019178,2]
[351038232,1738305045316,-500.0,0.00019178,2]
[351038234,1738305045326,-8324.65,0.00019178,2]
[351038236,1738305045335,-2584.33,0.00019178,2]
[351038238,1738305045344,-500.0,0.00019178,2]
[351038240,1738305045353,-500.0,0.00019178,2]
[351038242,1738305045365,-151.0,0.00019178,2]
[351038245,1738305045378,-151.0,0.00019178,2]
[351038247,1738305045393,-4353.28,0.00019178,2]
[351038250,1738305045407,-6857.56,0.00019178,2]
[351038252,1738305045418,-748.5,0.00019178,2]
[351038254,1738305045429,-500.0,0.00019178,2]
[351038256,1738305045442,-500.0,0.00019178,2]
[351038259,1738305045454,-500.0,0.00019178,2]
[351038261,1738305045467,-8823.7,0.00019178,2]
[351038263,1738305045480,-892.21,0.00019178,2]
[351038266,1738305045493,-554.54,0.00019178,2]
[351038268,1738305045506,-1643.4,0.00019178,2]
[351038270,1738305045518,-151.0,0.00019178,2]
[351038273,1738305045530,-2547.58,0.00019178,2]
[351038275,1738305045541,-151.0,0.00019178,2]
[351038277,1738305045553,-3407.2,0.00019178,2]
[351038279,1738305045566,-500.0,0.00019178,2]
[351038282,1738305045579,-151.0,0.00019178,2]
[351038284,1738305045591,-1000.0,0.00019178,2]
[351038286,1738305045604,-2444.23,0.00019178,2]
[351038288,1738305045621,-500.0,0.00019178,2]
[351038291,1738305045635,-2068.07,0.00019178,2]
[351038293,1738305045650,-500.0,0.00019178,2]
[351038296,1738305045661,-870.32,0.00019178,2]
[351038298,1738305045673,-1787.06,0.00019178,2]
[351038300,1738305045687,-538.79,0.00019178,2]
[351038303,1738305045700,-646.98,0.00019178,2]
[351038305,1738305045713,-904.46,0.00019178,2]
[351038307,1738305045725,-151.0,0.00019178,2]
[351038309,1738305045738,-4275.8,0.00019178,2]
[351038312,1738305045750,-1152.43,0.00019178,2]
[351038314,1738305045764,-683.31,0.00019178,2]
[351038317,1738305045778,-500.0,0.00019178,2]
[351038319,1738305045793,-500.0,0.00019178,2]
[351038321,1738305045805,-4182.25,0.00019178,2]
[351038324,1738305045817,-2459.19,0.00019178,2]
[351038326,1738305045828,-10947.16,0.00019178,2]
[351038328,1738305045839,-935.69,0.00019178,2]
[351038331,1738305045851,-1432.03,0.00019178,2]
[351038333,1738305045861,-2829.34,0.00019178,2]
[351038336,1738305045875,-1345.96,0.00019178,2]
[351038338,1738305045888,-3565.35,0.00019178,2]
[351038340,1738305045899,-3543.44,0.00019178,2]
[351038342,1738305045909,-2298.22,0.00019178,2]
[351038344,1738305045920,-500.0,0.00019178,2]
[351038347,1738305045931,-500.0,0.00019178,2]
[351038349,1738305045944,-500.0,0.00019178,2]
[351038351,1738305045957,-500.0,0.00019178,2]
[351038354,1738305045970,-1291.99,0.00019178,2]
[351038356,1738305045981,-500.0,0.00019178,2]
[351038358,1738305045992,-1278.48,0.00019178,2]
[351038361,1738305046003,-950.79,0.00019178,2]
[351038364,1738305046019,-500.0,0.00019178,2]
[351038367,1738305046031,-1386.34,0.00019178,2]
[351038372,1738305046044,-500.0,0.00019178,2]
[351038374,1738305046056,-3756.07,0.00019178,2]
[351038376,1738305046068,-500.0,0.00019178,2]
[351038378,1738305046081,-518.47946527,0.00019178,2]
[351038381,1738305046092,-1884.67,0.00019178,2]
[351038383,1738305046104,-500.0,0.00019178,2]
[351038385,1738305046116,-1555.45,0.00019178,2]
[351038388,1738305046128,-500.0,0.00019178,2]
[351038390,1738305046140,-4405.08,0.00019178,2]
[351038392,1738305046152,-1197.53,0.00019178,2]
[351038394,1738305046164,-1376.94,0.00019178,2]
[351038397,1738305046175,-500.0,0.00019178,2]
[351038399,1738305046186,-1263.64,0.00019178,2]
[351038401,1738305046198,-500.0,0.00019178,2]
[351038403,1738305046209,-2409.26,0.00019178,2]
[351038405,1738305046221,-405.70803933,0.00019178,2]
[351038408,1738305046233,-500.0,0.00019178,2]
[351038410,1738305046244,-1099.02,0.00019178,2]
[351038412,1738305046256,-313.41417104,0.00019178,2]
[351038414,1738305046267,-50036.97376377,0.00019178,2]
[351038417,1738305046279,-150.52,0.00019178,2]
[351038419,1738305046290,-250.5552527,0.00019182,3]
[351038421,1738305046303,-4473.99142106,0.0001919,3]
[351038423,1738305046315,-200.0,0.0001919,3]
[351038426,1738305046326,-195149.06499539,0.00019197,3]
[351038428,1738305046337,-195149.06499539,0.000192,3]
[351038430,1738305046348,-500.0,0.00019259,2]
[351038432,1738305046359,-153.60173477,0.0001926,2]
[351038435,1738305046374,-840.0,0.00019261,2]
[351038437,1738305046386,-90451.97047366,0.000193,2]
[351038439,1738305046397,-151.0,0.000193,2]
[351038441,1738305046408,-156.521245,0.000193,2]
[351038443,1738305046419,-151.0,0.000193,2]
[351038446,1738305046431,-151.0,0.000193,2]
[351038448,1738305046441,-151.0,0.000193,2]
[351038450,1738305046453,-151.0,0.000193,2]
[351038452,1738305046464,-300.0,0.00019314,2]
[351038454,1738305046475,-500.0,0.00019314,3]
[351038457,1738305046486,-500.0,0.00019314,3]
[351038459,1738305046497,-3114.11,0.00019314,3]
[351038461,1738305046508,-3114.11,0.00019314,3]
[351038463,1738305046519,-151.0,0.00019314,2]
[351038465,1738305046530,-277.251744,0.00019314,2]
[351038467,1738305046541,-151.0,0.00019314,2]
[351038470,1738305046553,-277.251744,0.00019314,2]
[351038472,1738305046564,-2561.412487,0.00019315,3]
[351038474,1738305046575,-1906.979987,0.00019315,3]
[351038476,1738305046586,-150.823465,0.00019315,3]
[351038479,1738305046598,-500.0,0.00019315,3]
[351038481,1738305046610,-500.0,0.00019315,3]
[351038483,1738305046623,-500.0,0.00019315,3]
[351038485,1738305046634,-500.0,0.00019315,3]
[351038487,1738305046645,-592.6,0.00019315,3]
[351038489,1738305046658,-500.0,0.00019315,3]
[351038492,1738305046670,-500.0,0.00019315,3]
[351038494,1738305046680,-500.0,0.00019315,3]
[351038496,1738305046692,-500.0,0.00019315,3]
[351038498,1738305046704,-500.0,0.00019315,3]
[351038500,1738305046715,-500.0,0.00019315,3]
[351038502,1738305046726,-500.0,0.00019315,3]
[351038505,1738305046738,-940.25,0.00019315,3]
[351038506,1738305046749,-500.0,0.00019315,3]
[351038507,1738305046760,-548.89,0.00019315,3]
[351038508,1738305046771,-500.0,0.00019315,3]
[351038509,1738305046782,-500.0,0.00019315,3]
[351038510,1738305046793,-611.59,0.00019315,3]
[351038511,1738305046806,-500.0,0.00019315,3]
[351038512,1738305046816,-500.0,0.00019315,3]
[351038513,1738305046827,-510.11,0.00019315,3]
[351038515,1738305046838,-500.0,0.00019315,3]
[351038517,1738305046850,-279.64016284,0.00019315,3]
[351038519,1738305046861,-500.0,0.00019315,3]
[351038521,1738305046873,-451.56570064,0.00019315,3]
[351038524,1738305046885,-500.0,0.00019315,3]
[351038526,1738305046896,-544.42506884,0.00019315,3]
[351038528,1738305046907,-500.0,0.00019315,3]
[351038530,1738305046919,-500.0,0.00019315,3]
[351038532,1738305046931,-500.0,0.00019315,3]
[351038534,1738305046942,-586.7540604,0.00019315,3]
[351038536,1738305046954,-500.0,0.00019315,3]
[351038539,1738305046965,-500.0,0.00019315,3]
[351038541,1738305046977,-500.0,0.00019315,3]
[351038543,1738305046988,-500.0,0.00019315,3]
[351038545,1738305046999,-500.0,0.00019315,3]
[351038547,1738305047009,-500.0,0.00019315,3]
[351038550,1738305047020,-500.0,0.00019315,3]
[351038552,1738305047030,-597.83,0.00019315,3]
[351038554,1738305047041,-500.0,0.00019315,3]
[351038556,1738305047053,-500.0,0.00019315,3]
[351038558,1738305047064,-500.0,0.00019315,3]
[351038560,1738305047076,-500.0,0.00019315,3]
[351038563,1738305047087,-500.0,0.00019315,3]
[351038565,1738305047098,-500.0,0.00019315,3]
[351038567,1738305047109,-506.83151347,0.00019315,3]
[351038569,1738305047119,-500.0,0.00019315,3]
[351038571,1738305047130,-500.0,0.00019315,3]
[351038573,1738305047142,-500.0,0.00019315,3]
[351038576,1738305047154,-500.0,0.00019315,3]
[351038578,1738305047165,-500.0,0.00019315,3]
[351038580,1738305047176,-500.0,0.00019315,3]
[351038582,1738305047187,-500.0,0.00019315,3]
[351038584,1738305047198,-500.0,0.00019315,3]
[351038586,1738305047209,-500.0,0.00019315,3]
[351038588,1738305047220,-150.823464,0.00019315,3]
[351038590,1738305047232,-892.45,0.00019315,3]
[351038593,1738305047242,-164.67780548,0.00019315,3]
[351038595,1738305047253,-500.0,0.00019315,3]
[351038597,1738305047264,-500.0,0.00019315,3]
[351038599,1738305047276,-500.0,0.00019315,3]
[351038601,1738305047287,-500.0,0.00019315,3]
[351038603,1738305047298,-500.0,0.00019315,3]
[351038605,1738305047309,-500.0,0.00019315,3]
[351038608,1738305047320,-621.91,0.00019315,3]
[351038610,1738305047331,-500.0,0.00019315,3]
[351038612,1738305047342,-500.0,0.00019315,3]
[351038614,1738305047353,-500.0,0.00019315,3]
[351038616,1738305047365,-500.0,0.00019315,3]
[351038618,1738305047376,-500.0,0.00019315,3]
[351038621,1738305047387,-945.02,0.00019315,3]
[351038623,1738305047399,-500.0,0.00019315,3]
[351038625,1738305047410,-839.16,0.00019315,3]
[351038627,1738305047421,-644.88,0.00019315,3]
[351038629,1738305047432,-643.82,0.00019315,3]
[351038632,1738305047443,-500.0,0.00019315,3]
[351038634,1738305047454,-500.0,0.00019315,3]
[351038636,1738305047464,-534.48,0.00019315,3]
[351038638,1738305047475,-500.0,0.00019315,3]
[351038640,1738305047486,-500.0,0.00019315,3]
[351038642,1738305047496,-500.0,0.00019315,3]
[351038644,1738305047507,-500.0,0.00019315,3]
[351038646,1738305047518,-624.54,0.00019315,3]
[351038648,1738305047528,-500.0,0.00019315,3]
[351038651,1738305047539,-500.0,0.00019315,3]
[351038653,1738305047549,-294.91533,0.00019315,2]
[351038655,1738305047560,-500.0,0.00019315,3]
[351038657,1738305047570,-500.0,0.00019315,3]
[351038659,1738305047582,-500.0,0.00019315,3]
[351038661,1738305047593,-500.0,0.00019315,3]
[351038663,1738305047604,-500.0,0.00019315,3]
[351038665,1738305047618,-748.93,0.00019315,3]
[351038667,1738305047629,-500.0,0.00019315,3]
[351038670,1738305047640,-629.81,0.00019315,3]
[351038672,1738305047650,-527.96,0.00019315,3]
[351038674,1738305047662,-500.0,0.00019315,3]
[351038676,1738305047673,-500.0,0.00019315,3]
[351038678,1738305047683,-500.0,0.00019315,3]
[351038680,1738305047695,-1029.5,0.00019315,3]
[351038682,1738305047705,-500.0,0.00019315,3]
[351038684,1738305047716,-510.4,0.00019315,3]
[351038686,1738305047726,-1069.89,0.00019315,3]
[351038688,1738305047738,-500.0,0.00019315,3]
[351038691,1738305047748,-500.0,0.00019315,3]
[351038693,1738305047760,-500.0,0.00019315,3]
[351038695,1738305047770,-1261.9,0.00019315,3]
[351038697,1738305047781,-500.0,0.00019315,3]
[351038699,1738305047792,-500.0,0.00019315,3]
[351038701,1738305047804,-509.27,0.00019315,3]
[351038703,1738305047815,-999.51,0.00019315,3]
[351038705,1738305047826,-1002.1,0.00019315,3]
[351038707,1738305047837,-184.926739,0.00019315,2]
[351038709,1738305047847,-787.81,0.00019315,3]
[351038712,1738305047858,-500.0,0.00019315,3]
[351038714,1738305047868,-500.0,0.00019315,3]
[351038716,1738305047879,-564.05,0.00019315,3]
[351038718,1738305047891,-657.22,0.00019315,3]
[351038720,1738305047902,-500.0,0.00019315,3]
[351038722,1738305047913,-1484.08,0.00019315,3]
[351038724,1738305047923,-657.63,0.00019315,3]
[351038727,1738305047934,-698.29,0.00019315,3]
[351038729,1738305047945,-637.86,0.00019315,3]
[351038731,1738305047955,-500.0,0.00019315,3]
[351038733,1738305047966,-500.0,0.00019315,3]
[351038735,1738305047976,-813.38,0.00019315,3]
[351038737,1738305047987,-500.0,0.00019315,3]
[351038739,1738305047998,-500.0,0.00019315,3]
[351038742,1738305048009,-500.0,0.00019315,3]
[351038744,1738305048019,-669.6,0.00019315,3]
[351038746,1738305048030,-500.0,0.00019315,3]
[351038748,1738305048041,-577.58,0.00019315,3]
[351038786,1738305048393,-636.74,0.00019315,3]
[351038790,1738305048430,-621.08,0.00019315,3]
[351038793,1738305048451,-619.94,0.00019315,3]
[351038795,1738305048462,-513.386484,0.00019315,3]
[351038797,1738305048472,-500.0,0.00019315,3]
[351038799,1738305048482,-1585.17,0.00019315,3]
[351038801,1738305048492,-500.0,0.00019315,3]
[351038803,1738305048501,-1674.68,0.00019315,3]
[351038805,1738305048511,-514.86,0.00019315,3]
[351038807,1738305048521,-500.0,0.00019315,3]
[351038809,1738305048530,-592.24,0.00019315,3]
[351038811,1738305048539,-587.16,0.00019315,3]
[351038813,1738305048549,-589.61,0.00019315,3]
[351038815,1738305048559,-1014.15,0.00019315,3]
[351038816,1738305048569,-500.0,0.00019315,3]
[351038817,1738305048579,-508.89,0.00019315,3]
[351038818,1738305048589,-594.29,0.00019315,3]
[351038819,1738305048599,-500.0,0.00019315,3]
[351038820,1738305048610,-596.58,0.00019315,3]
[351038821,1738305048622,-500.0,0.00019315,3]
[351038822,1738305048632,-500.0,0.00019315,3]
[351038823,1738305048643,-571.22,0.00019315,3]